Cogmind - Beta 9.6 @@@ ROGUE MODE // 2020.09.08 @ 20:31:15 Player: Finestep Result: Destroyed by P-80 Master with Gamma Rifle Performance ------------- Evolutions (8) 4000 Regions Visited (21) 4200 Robots Destroyed (538) 2690 Value Destroyed (31790) 31790 Prototype IDs (78) 1560 Alien Tech Used (10) 2000 Bonus (23790) 23790 TOTAL SCORE: 70030 Bonus ------- Triggered High Security 1000 High Alert Combat Kills 12532 Follower Combat Kills 4357 Entered Garrisons 1200 Used RIF Installer 3000 Aligned with FarCom 300 Used Core Reset Matrix 3000 Hacked Protovariant 500 Friendly Fire -2099 Cogmind --------- Core Integrity 0/1450 Matter 118/300 Energy 99/100 System Corruption 0% Temperature Cool (0) Movement Core (50) Location -2/Testing Parts ------- > --- POWER (2) -------- (None) > --- PROPULSION (4) --- (None) > --- UTILITY (14) ----- (None) > --- WEAPON (3) ------- (None) > --- INVENTORY (4) ---- Improved Quantum Reactor Improved Core Shielding Core Stripper Peak State ------------ > --- POWER ------------ Improved Quantum Reactor Improved Quantum Reactor > --- PROPULSION ------- Advanced Heavy Treads Experimental Biometal Heavy Treads > --- UTILITY ---------- Experimental Cooling System Large Storage Unit Large Storage Unit High-capacity Storage Unit High-capacity Storage Unit High-capacity Storage Unit Advanced Particle Charger Quantum Capacitor Heavy Regenerative Plating Advanced Force Field Experimental Hacking Suite Advanced System Shield > --- WEAPON ----------- Advanced Remote Datajack Sigix Broadsword > --- INVENTORY -------- Particle Reactor Light Quantum Reactor High-density Centrium Heavy Treads Experimental Cooling System Experimental Cooling System Large Storage Unit Experimental Energy Well Superbattery Matter Compressor Improved Armor Integrity Analyzer Heavy Regenerative Plating Phase Armor EM Dispersion Field Experimental Force Field Relay Coupler [NC] Relay Coupler [NC] Relay Coupler [Sentry] Relay Coupler [Sentry] System Backup Module Integrity Redistributor Core Reset Matrix HERF Cannon HERF Cannon Improved Matter Neutralizer Improved Matter Neutralizer Graviton Cannon Advanced Remote Datajack Advanced Remote Datajack Core Stripper Makeshift Sword [Rating: 191] Favorites ----------- Power Reinforced Deuterium Engine Engine Reinforced Deuterium Engine Power Core Micro Nuclear Core Reactor Light Quantum Reactor Propulsion Medium Treads Treads Medium Treads Leg Carbon-fiber Leg Wheel Armored Huge Wheel Utility High-capacity Storage Unit Device Advanced Heat Sink Storage High-capacity Storage Unit Processor Advanced Targeting Computer Hackware Relay Coupler [Sentry] Protection Improved Light Armor Plating Artifact Phase Armor Weapon Enhanced Gauss Cannon Energy Gun Medium Laser Energy Cannon Proton Cannon Ballistic Gun Gauss Rifle Ballistic Cannon Enhanced Gauss Cannon Launcher Heavy Proton Missile Launcher Special Weapon Remote Datajack Impact Weapon Core Stripper Slashing Weapon Makeshift Sword Build | -11 -10 -10 -10 -9 -8 -8 -7 -7 -6 -6 -5 -5 -4 -4 -4 -4 -3 -3 -3 -2 -2 ------- Run | Scr Mat Min Exi Min Mat Gar Fac Gar Fac Gar Fac Gar Fac Gar Fac Gar Res Qua Sec Res Tes Slots Evolved 16 | . . . . . 4 . 2 . 2 . 2 . 2 . . . 2 . . 2 . Power 1 | . . . . . . . . . . . 1 . . . . . . . . . . Propulsion 2 | . . . . . . . . . . . 1 . 1 . . . . . . . . Utility 12 | . . . . . 4 . 2 . 2 . . . 1 . . . 2 . . 1 . Weapon 1 | . . . . . . . . . . . . . . . . . . . . 1 . Parts Attached 730 | 7 14 6 2 6 48 27 50 28 39 51 14 16 38 41 34 25 35 80 64 78 27 Power 45 | 1 2 . . 1 4 . 2 2 1 4 1 1 . 1 . 1 1 7 3 10 3 Engine 18 | 1 2 . . 1 3 . 2 1 1 3 1 1 . 1 . . 1 . . . . Core 4 | . . . . . 1 . . 1 . 1 . . . . . . . . . 1 . Reactor 23 | . . . . . . . . . . . . . . . . 1 . 7 3 9 3 Propulsion 48 | 2 1 1 . 1 8 . 2 1 . 1 3 . 3 3 1 1 2 6 2 5 5 Treads 35 | 2 1 1 . . 2 . . . . . 2 . 2 3 1 1 2 6 2 5 5 Leg 5 | . . . . 1 4 . . . . . . . . . . . . . . . . Wheel 8 | . . . . . 2 . 2 1 . 1 1 . 1 . . . . . . . . Hover . | . . . . . . . . . . . . . . . . . . . . . . Flight . | . . . . . . . . . . . . . . . . . . . . . . Utility 264 | 2 3 . 2 . 13 11 18 11 15 17 6 6 15 17 9 7 16 28 31 29 8 Device 98 | . . . . . 2 2 1 2 2 5 1 3 8 7 1 2 11 20 16 13 2 Storage 32 | 2 3 . 2 . 1 . 2 . . 3 1 . . 1 . . 1 4 7 5 . Processor 8 | . . . . . 2 . 1 . 1 . 1 . . . . . . . 2 . 1 Hackware 62 | . . . . . . 6 7 3 4 5 3 2 6 7 5 3 3 1 3 2 2 Protection 61 | . . . . . 8 3 7 6 8 4 . 1 1 2 3 2 1 3 2 7 3 Artifact 3 | . . . . . . . . . . . . . . . . . . . 1 2 . Weapon 373 | 2 8 5 . 4 23 16 28 14 23 29 4 9 20 20 24 16 16 39 28 34 11 Energy Gun 5 | 1 . . . . . . . . . . . . . . . . . 2 . 1 1 Energy Cannon 83 | . . . . . 2 . 1 1 13 16 2 1 5 . 1 . 2 7 12 18 2 Ballistic Gun 74 | 1 6 4 . 3 16 10 12 8 2 8 . . . . . . . . . 1 3 Ballistic Cannon 68 | . . . . . . . . . . . . 4 6 13 10 10 9 11 3 2 . Launcher 22 | . 2 1 . 1 1 2 1 2 . . . 1 . 1 4 1 . . . 4 1 Special Weapon 75 | . . . . . . 4 8 3 4 4 2 3 9 5 9 4 3 5 4 6 2 Impact Weapon 3 | . . . . . . . . . . . . . . . . . . 1 2 . . Slashing Weapon 43 | . . . . . 4 . 6 . 4 1 . . . 1 . 1 2 13 7 2 2 Piercing Weapon . | . . . . . . . . . . . . . . . . . . . . . . Special Melee Weapon . | . . . . . . . . . . . . . . . . . . . . . . Unidentified Prototypes 23 | . . . . . 1 . . . . . . . . . . . 2 11 7 . 2 Parts Lost 136 | . 1 1 . 4 6 1 3 5 1 17 . . . 3 2 . 4 15 6 30 37 Power 25 | . 1 . . 1 2 . . 2 . 1 . . . . . . 1 5 2 5 5 Propulsion 19 | . . 1 . 1 1 . 1 . . 1 . . . 1 . . . 3 1 4 5 Utility 57 | . . . . . 1 . 2 2 1 9 . . . 2 2 . 2 6 2 12 16 Weapon 35 | . . . . 2 2 1 . 1 . 6 . . . . . . 1 1 1 9 11 Highest Loss Streak 30 | . 1 1 . 4 3 1 1 4 1 4 . . . 1 1 . 1 4 3 9 30 Average Slot Usage (%) 90 | . 99 100 100 97 91 89 91 91 88 85 92 93 93 90 93 93 94 88 76 80 83 Engine 6 | . 13 14 14 12 5 9 7 2 2 4 11 11 10 9 10 7 3 1 . . . Reactor 1 | . . . . . . . . . . . . . . . . 2 4 6 5 7 7 Treads 9 | . 27 28 28 19 4 . . . . . 3 11 14 13 15 15 14 9 8 8 7 Wheel 2 | . . . . . 4 9 7 6 6 6 7 . . . . . . . . . . Device 6 | . . . . . 1 3 4 2 8 13 8 9 8 2 . 5 12 10 12 13 11 Storage 26 | . 28 28 28 28 27 27 25 30 26 33 32 29 26 26 26 26 23 23 24 24 24 Processor 1 | . . . . . 6 9 7 . . . . . . . . . . . 1 . . Hackware 11 | . . . . . . 3 15 8 7 6 14 12 16 26 27 23 18 22 6 9 11 Protection 5 | . . . . . 13 10 6 18 18 4 . 4 5 1 2 2 5 2 3 4 5 Energy Cannon 2 | . . . . . 2 . . . 9 7 9 . 2 . . . . . 3 4 . Ballistic Gun 6 | . 21 27 28 27 15 13 5 13 . 3 . . . . . . . . . . 7 Ballistic Cannon 2 | . . . . . . . . . . . . 8 5 7 7 7 8 3 . . . Special Weapon 1 | . . . . . . 3 4 . 1 1 1 . 1 1 1 1 . 1 2 1 . Naked Turns 4 | . . . . . . . . . . . . . . . . . . . . . 4 Heaviest Build 260 | 15 56 57 71 73 125 121 174 178 196 197 205 211 213 213 206 206 230 219 231 260 211 Greatest Support 180 | 40 40 40 40 40 30 28 28 28 28 28 98 98 126 140 128 130 130 180 165 165 160 Greatest Overweight (x) 7 | 1 1 1 1 3 7 4 6 6 6 7 5 2 1 1 1 1 3 3 1 1 4 Average Overweight (x) 2 | . . 1 1 2 4 3 4 5 5 5 4 1 1 1 1 1 1 1 1 1 1 Largest Inventory Capacity 48 | 8 18 18 20 20 28 28 36 36 36 42 42 42 42 42 42 42 42 48 40 40 40 Average Capacity 35 | 6 15 18 19 20 28 28 30 36 36 38 42 42 42 42 42 42 42 40 40 40 39 Most Carried 42 | 4 18 18 20 20 28 28 34 36 36 42 42 42 42 42 42 42 42 42 40 36 39 Average Carried 33 | 2 14 17 18 19 24 27 28 34 35 35 41 41 41 41 41 41 41 39 38 30 33 Final Capacity 42 | 8 18 18 20 20 28 28 36 36 36 42 42 42 42 42 42 42 42 40 40 40 4 Final Carried 42 | 4 17 18 20 19 28 28 31 36 35 42 41 42 41 41 42 42 41 40 36 33 4 Class Distribution -------------------- 36% | Botlord-Mutant 26% | Bothacker-Mutant 24% | Hauler-Mutant 10% | Mutant Dominant Class ---------------- Mutant | -10/Materials Mutant | -10/Mines Hauler-Mutant | -10/Exiles Hauler-Mutant | -9/Mines Hauler-Mutant | -8/Materials Hauler-Mutant | -8/Garrison Bothacker-Mutant | -7/Factory Bothacker-Mutant | -7/Garrison Bothacker-Mutant | -6/Factory Bothacker-Mutant | -6/Garrison Bothacker-Mutant | -5/Factory Botlord-Mutant | -5/Garrison Botlord-Mutant | -4/Factory Botlord-Mutant | -4/Garrison Botlord-Mutant | -4/Factory Botlord-Mutant | -4/Garrison Botlord-Mutant | -3/Research Botlord-Mutant | -3/Quarantine Bothacker-Mutant | -3/Section 7 Hauler-Mutant | -2/Research Hauler-Mutant | -2/Testing Resources | -11 -10 -10 -10 -9 -8 -8 -7 -7 -6 -6 -5 -5 -4 -4 -4 -4 -3 -3 -3 -2 -2 ----------- Run | Scr Mat Min Exi Min Mat Gar Fac Gar Fac Gar Fac Gar Fac Gar Fac Gar Res Qua Sec Res Tes Matter Collected 18851 | 285 493 210 . 129 1146 887 911 960 516 1119 195 643 844 1231 1140 1520 513 2007 1579 1881 642 Remotely 39 | . . . . . . . . . . . . . . . . . . 39 . . . Salvage Created 31027 | 116 673 343 . 168 1928 615 1149 649 1279 1711 90 452 513 714 808 572 722 2229 2756 12606 934 Parts 1190 | 7 43 22 . 12 98 30 42 35 51 47 5 19 31 32 32 27 45 96 94 382 40 Haulers Intercepted 7 | . 2 . . . 4 . . . . . . . 1 . . . . . . . . Recyclers Shooed 20 | . . 2 . . 1 . 2 . 1 . . . 1 . 4 . 2 1 . 6 . Parts Field Recycled . | . . . . . . . . . . . . . . . . . . . . . . Retrieved Matter . | . . . . . . . . . . . . . . . . . . . . . . Parts Self-Destructed . | . . . . . . . . . . . . . . . . . . . . . . Prevented . | . . . . . . . . . . . . . . . . . . . . . . Kills | -11 -10 -10 -10 -9 -8 -8 -7 -7 -6 -6 -5 -5 -4 -4 -4 -4 -3 -3 -3 -2 -2 ------- Run | Scr Mat Min Exi Min Mat Gar Fac Gar Fac Gar Fac Gar Fac Gar Fac Gar Res Qua Sec Res Tes Combat Hostiles Destroyed 439 | . 17 12 . 6 25 22 15 20 17 23 1 8 12 13 5 10 11 29 39 143 11 Melee 10 | . . . . . . . 1 . . . . . . . . . . 6 2 . 1 Guns 114 | . 17 10 . 3 23 14 9 12 2 13 . . . . . . . . . 1 10 Cannons 166 | . . . . . 2 . 2 1 8 6 . 8 12 13 5 10 11 17 24 47 . AOE 51 | . . 2 . 3 . 8 3 7 4 . . . . . . . . 2 . 22 . Classes Destroyed 21 | 2 6 . . 1 4 . 1 . . . . 1 . 1 . . . 1 1 2 1 Worker 12 | . 1 . . . 2 . 1 . 1 . . . . . 1 . . 1 . 4 1 Builder 8 | . . . . . 2 . 1 . . . . . . . 1 . 2 1 . 1 . Tunneler 3 | 2 . . . . . . . . . . . . 1 . . . . . . . . Hauler 7 | . 2 . . . 4 . . . . . . . 1 . . . . . . . . Recycler 31 | 1 . 2 . 1 5 . 5 . 1 . . . . . 3 . 1 2 3 7 . Mechanic 2 | . . . . . . . . . . . . . . . . . . . . 2 . Operator 8 | . 1 . . . 3 . . . 1 . . . . . . . . 2 . 1 . Watcher 16 | . 2 . . . 1 . 1 . 1 . . . 1 . . . . . . 10 . Swarmer 93 | . 9 12 . 4 3 11 3 11 1 2 . 4 4 1 . 8 1 5 . 14 . Saboteur 6 | . . . . . . . . . . . . . . . . . . . 1 5 . Grunt 181 | . 8 . . 1 12 6 7 8 9 15 . 4 2 7 3 3 4 7 17 63 5 Brawler 14 | . . . . . . . 1 . 2 2 . . . . . . . . 2 7 . Duelist 18 | . . . . 1 1 1 . . . 2 . . . . . . 1 . 3 7 2 Protector 3 | . . . . . . . . . . . . . . . . . . . . 3 . Researcher 1 | . . . . . . . . . . . . . . . . . . . . . 1 Sentry 36 | . . . . . 6 1 3 1 4 . 1 1 . 2 1 3 . . 3 10 . Specialist 1 | . . . . . . . . . . . . . . 1 . . . . . . . Hunter 28 | . . . . . 2 4 . 1 . 2 . 1 . . 1 . . 3 1 12 1 Programmer 66 | . . . . . 1 . 1 . 1 . . . 6 3 1 . 5 13 10 22 3 Behemoth 1 | . . . . . . . . . . . . 1 . . . . . . . . . S7 Guard 2 | . . . . . . . . . . . . . . . . . . . 2 . . Fortress 1 | . . . . . . . . . . . . . . . . . . 1 . . . Best Kill Streak 20 | 2 4 3 . 4 7 6 4 4 4 7 1 2 2 4 2 3 4 8 8 20 4 Combat Bots Only 20 | . 3 3 . 4 3 6 4 4 3 7 1 2 2 4 2 3 4 7 8 20 4 Max Kills in Single Turn 3 | 1 1 1 . 3 2 3 2 3 2 1 1 1 1 1 2 3 2 3 1 3 1 Gunslinging . | . . . . . . . . . . . . . . . . . . . . . . Exploded 3 | . . 1 . 3 . 3 2 3 1 . . . . . . . . 2 . 2 . Melee 1 | . . . . . . . 1 . . . . . . . . . . 1 1 . 1 Uniques/NPCs Destroyed . | . . . . . . . . . . . . . . . . . . . . . . Combat | -11 -10 -10 -10 -9 -8 -8 -7 -7 -6 -6 -5 -5 -4 -4 -4 -4 -3 -3 -3 -2 -2 -------- Run | Scr Mat Min Exi Min Mat Gar Fac Gar Fac Gar Fac Gar Fac Gar Fac Gar Res Qua Sec Res Tes Damage Taken 42327 | . 561 340 . 345 2235 961 1387 1072 1249 2795 117 473 624 1056 740 497 1005 4100 6159 11826 4785 Core 4114 | . 52 32 . 53 193 267 142 144 113 311 . 31 38 24 124 71 62 459 534 862 602 Absorbed by Shields 6513 | . . . . . . 99 . 51 . 224 36 240 228 420 . 9 700 771 1278 2457 . Reduced by Siege Mode 1123 | . . . . . . . . . . . . . . 96 . 15 87 105 556 264 . Redirected to Core 868 | . . . . . . . . . . . . . . . . . . . 355 513 . Core Remaining (%) 57 | 100 . . . 45 . 16 . 59 . 50 . 96 . . . 77 . . 16 . . Volleys Fired 1841 | 5 89 44 . 21 152 87 85 92 70 120 13 58 68 78 52 45 42 82 208 378 52 Largest 3 | 2 2 2 . 2 2 2 2 2 2 2 2 2 2 2 2 2 2 2 1 3 3 Hottest 302 | 70 70 40 . 40 150 56 69 97 150 150 150 150 150 132 132 132 170 176 113 302 144 Shots Fired 2748 | 10 175 83 . 38 303 127 126 150 110 214 17 88 99 121 66 68 77 131 187 432 126 Gun 1134 | 10 173 79 . 37 287 96 82 126 23 100 . . . . . . . . . 9 112 Cannon 1249 | . . . . . 15 . 11 7 73 94 8 79 73 91 40 52 73 121 184 318 10 Launcher 131 | . 2 4 . 1 1 11 2 6 . . . 5 . 1 5 2 . . . 91 . Special 234 | . . . . . . 20 31 11 14 20 9 4 26 29 21 14 4 10 3 14 4 Kinetic 1593 | 5 131 79 . 37 287 96 82 126 23 100 . 59 55 91 38 52 70 92 36 26 108 Thermal 280 | 5 42 . . . 15 . . . 14 . . . 2 . . . 3 3 68 114 14 Explosive 40 | . 2 4 . 1 1 11 2 6 . . . 5 . 1 5 2 . . . . . Electromagnetic 601 | . . . . . . . 11 7 59 94 8 20 16 . 2 . . 26 80 278 . Robot Hit Streak 55 | 6 16 10 . 15 14 13 24 17 18 10 3 9 18 19 27 13 16 23 55 17 14 Robot Miss Streak 5 | 1 4 4 . 2 3 3 5 5 4 5 2 5 3 1 3 3 2 4 2 3 2 Penetration Max 2 | . . . . . 1 1 1 . . 1 . . . . 1 2 1 1 . 1 1 Secondary Targets 22 | . 3 2 . 1 3 1 1 2 . 7 . . . . . . . . . . 2 Max Gunslinging Chain 1 | . 1 1 . 1 1 1 1 1 . 1 . . . . . . . . . . 1 Capacitor 287 | . . . . . . . . . . . . . . . . . . . 148 139 . Shots Hit Robots 1879 | 9 107 54 . 31 204 68 104 60 74 137 11 43 65 86 40 37 52 104 172 316 105 Core Hits 860 | 4 37 31 . 13 86 44 37 36 32 61 . 15 21 17 15 18 24 43 63 226 37 Critical Hits 164 | . . 1 . . 2 . 2 1 1 1 . 8 8 12 14 19 29 41 16 9 . Critical Kills 71 | . . 1 . . 1 . 2 . 1 . . 3 5 8 7 11 9 14 4 5 . Critical Parts Destroyed 89 | . . . . . 1 . . 1 . 1 . 4 3 3 7 8 20 27 10 4 . Melee Attacks 178 | . . . . . 6 . 37 . 14 5 . . . 1 . 3 8 55 28 15 6 Kinetic 4 | . . . . . . . . . . . . . . . . . . 1 3 . . Impact . | . . . . . . . . . . . . . . . . . . . . . . Slashing 174 | . . . . . 6 . 37 . 14 5 . . . 1 . 3 8 54 25 15 6 Piercing . | . . . . . . . . . . . . . . . . . . . . . . Sneak Attacks 19 | . . . . . . . 7 . 1 . . . . 1 . . . 5 4 . 1 Combat Hostiles 3 | . . . . . . . 1 . . . . . . . . . . . 2 . . Follow-up Attacks . | . . . . . . . . . . . . . . . . . . . . . . Damage Inflicted 62811 | 110 1129 770 . 425 2871 1399 2454 1643 2586 3792 105 1428 1729 1453 731 584 1466 4537 7711 22663 3225 Guns 12170 | 110 1092 511 . 260 2603 886 1063 978 233 1627 . . . . . . . . . 208 2599 Cannons 33293 | . . . . . 250 . 357 32 1608 1707 105 1428 1729 1345 691 584 1430 2538 6404 12649 436 Explosions 12519 | . 37 259 . 165 . 495 119 633 644 57 . . . . 40 . . 264 . 9806 . Melee 4700 | . . . . . . . 915 . 101 387 . . . 108 . . 36 1735 1307 . 111 Ramming 129 | . . . . . 18 18 . . . 14 . . . . . . . . . . 79 Kinetic 22363 | 45 881 511 . 260 2603 886 1063 978 233 1627 . 1030 1410 1345 649 584 1430 1788 1374 1162 2504 Thermal 11177 | 65 211 . . . 250 . . . 1019 57 . . 78 . . . . . 2581 6385 531 Explosive 2012 | . 37 259 . 165 . 495 119 633 . . . . . . 40 . . 264 . . . Electromagnetic 22504 | . . . . . . . 357 32 1233 1707 105 398 241 . 42 . . 750 2523 15116 . Impact . | . . . . . . . . . . . . . . . . . . . . . . Slashing 4626 | . . . . . . . 915 . 101 387 . . . 108 . . 36 1735 1233 . 111 Piercing . | . . . . . . . . . . . . . . . . . . . . . . Highest Corruption 49 | . 2 2 2 2 1 1 . . 7 10 . . 1 6 8 8 11 28 49 . . Average Corruption 9 | . 2 2 2 2 1 1 . . 6 8 . . 1 5 7 8 4 19 36 . . Corruption Purged . | . . . . . . . . . . . . . . . . . . . . . . Effects 759 | . 5 17 9 6 8 8 . . 15 96 . . . 87 43 67 14 162 222 . . Message Errors 125 | . 3 4 1 3 3 2 . . 4 13 . . . 16 9 13 3 25 26 . . Matter Fused 122 | . . . . . . . . . 4 20 . . . 15 10 17 . 29 27 . . Heat Flow Errors 63 | . . 5 1 . . . . . . 11 . . . 13 3 3 . 18 9 . . Energy Discharges 68 | . . 2 5 . 2 2 . . . 10 . . . 12 3 13 2 11 6 . . Parts Rejected 6 | . . . . . . . . . . 1 . . . 1 1 1 1 1 . . . Data Loss (minor) 57 | . 1 . 2 1 2 1 . . . 9 . . . 10 2 6 3 11 9 . . Data Loss (major) 27 | . . . . . . . . . 1 2 . . . 8 3 4 . 6 3 . . Misfires 21 | . . . . . . . . . 1 4 . . . 6 1 3 . 3 3 . . Alerts 6 | . . . . . . . . . . . . . . . . . . 4 2 . . Misdirections 41 | . . . . . . . . . . 8 . . . . . . . 19 14 . . Targeting Errors 190 | . 1 5 . 1 1 1 . . 5 18 . . . 6 10 5 4 34 99 . . Weapon Failures 33 | . . 1 . 1 . 2 . . . . . . . . 1 2 1 1 24 . . Overload Shots . | . . . . . . . . . . . . . . . . . . . . . . Overflow Damage 2776 | . . 22 . 4 . 22 509 9 126 2 . 45 27 104 . . . 354 437 1115 . Projectiles 1525 | . . . . . . . 83 . 32 . . 45 27 104 . . . 27 363 844 . Explosions 363 | . . 22 . 4 . 22 . 9 18 2 . . . . . . . 15 . 271 . Melee 888 | . . . . . . . 426 . 76 . . . . . . . . 312 74 . . Knockbacks 105 | . . . . . . . . . . . . 5 7 10 4 . 18 22 29 8 2 Impact 2 | . . . . . . . . . . . . . . . . . . . . . 2 Kinetic 87 | . . . . . . . . . . . . 5 7 9 4 . 18 20 16 8 . Secondary 16 | . . . . . . . . . . . . . . 1 . . . 2 13 . . Self-Inflicted Damage 722 | . . 28 . . 9 9 . 27 84 33 . . . . 2 . . 241 . 285 4 Shots 23 | . . 1 . . . . . 1 2 1 . . . . 1 . . 2 . 15 . Rammed 12 | . . . . . 2 1 . . . 1 . . . . . . . . . . 8 Targets Rammed 13 | . . . . . 2 1 . . . 1 . . . . . . . . . . 9 Kicked . | . . . . . . . . . . . . . . . . . . . . . . Crushed 1 | . . . . . . . . . . . . . . . . . . . . . 1 Highest Temperature 519 | 36 99 171 153 12 156 51 112 228 240 348 372 99 180 304 252 257 48 221 455 519 . Average Temperature 63 | 19 24 82 77 8 30 14 23 36 62 87 134 35 36 91 49 48 15 89 132 108 . Received Heat Transfer 5736 | . 180 . . 18 765 126 456 147 219 716 19 118 51 88 123 60 163 187 756 1184 360 Effects 24 | . . . . . . . . . . 1 1 . . 3 . . . . 9 10 . Shutdowns 8 | . . . . . . . . . . . 1 . . . . . . . 3 4 . Energy Bleed 5 | . . . . . . . . . . 1 . . . 1 . . . . 3 . . Interference 8 | . . . . . . . . . . . . . . 2 . . . . 3 3 . Short Circuit 2 | . . . . . . . . . . . . . . . . . . . . 2 . Damage (major) 1 | . . . . . . . . . . . . . . . . . . . . 1 . Siege Activations 23 | . . . . . . . . . . . . . . 3 . 3 2 2 4 9 . Total Turns 692 | . . . . . . . . . . . . . . 71 . 71 51 59 279 161 . Longest Duration 212 | . . . . . . . . . . . . . . 36 . 30 31 45 212 36 . Robots Corrupted 101 | . . . . . . . 1 . 3 4 1 1 . . . . . 4 11 76 . Combat Hostiles 92 | . . . . . . . . . 3 4 1 . . . . . . 3 10 71 . Parts Fried 201 | . . . . . . . 2 . 5 4 1 2 . . . . . 11 20 156 . Impact Corruptions . | . . . . . . . . . . . . . . . . . . . . . . Robots Melted 2 | . . . . . . . . . . . . . . . . . . . 1 1 . Combat Hostiles 2 | . . . . . . . . . . . . . . . . . . . 1 1 . Parts Melted 22 | . . . . . . . . 1 3 . . . . . . . . . 2 15 1 Heat Transferred 9296 | 185 592 . . . 370 . . . 870 50 . . 74 . . . . . 1957 4717 481 Parts Sabotaged 4 | . . . . . . . . . . . . . . . . . . . . . 4 Parts Stolen . | . . . . . . . . . . . . . . . . . . . . . . Parts Stripped . | . . . . . . . . . . . . . . . . . . . . . . Power Chain Reactions 21 | . . . . . . . . . 5 1 . . . . . . . . . 15 . Missiles Intercepted . | . . . . . . . . . . . . . . . . . . . . . . Alert | -11 -10 -10 -10 -9 -8 -8 -7 -7 -6 -6 -5 -5 -4 -4 -4 -4 -3 -3 -3 -2 -2 ------- Run | Scr Mat Min Exi Min Mat Gar Fac Gar Fac Gar Fac Gar Fac Gar Fac Gar Res Qua Sec Res Tes Peak Influence 3840 | 15 215 170 . 110 420 1005 802 1267 1241 1329 992 1503 857 1038 1176 1455 838 463 878 3840 2387 Average Influence 734 | 8 75 68 . 82 97 809 477 960 734 1078 774 1214 627 858 1045 1167 684 315 434 1540 2250 Maximum Alert Level 5 | . 1 . . . 2 3 3 4 4 4 3 4 3 3 4 4 3 2 3 5 5 Low Security (%) 19 | 100 94 100 . 100 84 . . . . . . . . . . . . 13 5 . . Level 1 12 | . 5 . . . 15 2 42 . . . . . 6 . . . . 64 50 8 . Level 2 19 | . . . . . . 33 48 18 56 . 59 3 55 15 6 . 54 22 27 28 . Level 3 28 | . . . . . . 63 9 38 37 48 40 27 38 84 51 38 45 . 16 13 . Level 4 15 | . . . . . . . . 43 5 51 . 68 . . 41 61 . . . 6 . Level 5 2 | . . . . . . . . . . . . . . . . . . . . 26 61 High Security 1 | . . . . . . . . . . . . . . . . . . . . 16 38 Max Security . | . . . . . . . . . . . . . . . . . . . . . . Squads Dispatched 134 | . 5 . . . 9 . 11 . 5 . 4 . 10 . 9 . 4 9 8 43 17 Investigation 15 | . 1 . . . 2 . 2 . 1 . 1 . 2 . 2 . . 1 1 1 1 Extermination 29 | . . . . . . . 3 . 2 . 1 . 4 . 2 . 2 5 4 6 . Reinforcement 29 | . 4 . . . 3 . 2 . 2 . . . 3 . 2 . . 3 . 5 5 Assault 43 | . . . . . . . 1 . . . . . 1 . 2 . 2 . 3 23 11 Garrison 18 | . . . . . 4 . 3 . . . 2 . . . 1 . . . . 8 . Intercept . | . . . . . . . . . . . . . . . . . . . . . . Construction Impeded 7 | . . . . . . . . . 1 . . . 2 . 1 . . 1 . 2 . Haulers Reinforced 1 | . . . . . . . 1 . . . . . . . . . . . . . . Alert ID Control Effect 7 | . . . . . . . . . . . . . . . . 2 2 . . 3 . Stealth | -11 -10 -10 -10 -9 -8 -8 -7 -7 -6 -6 -5 -5 -4 -4 -4 -4 -3 -3 -3 -2 -2 --------- Run | Scr Mat Min Exi Min Mat Gar Fac Gar Fac Gar Fac Gar Fac Gar Fac Gar Res Qua Sec Res Tes Distress Signals 36 | . 4 . . . 5 . 1 . 2 . . . 3 . . . . . 2 19 . Communications Jammed . | . . . . . . . . . . . . . . . . . . . . . . Distress Signals . | . . . . . . . . . . . . . . . . . . . . . . Times Spotted 851 | . 37 13 . 6 50 23 61 35 33 43 4 30 47 31 32 24 19 45 51 218 49 Peak Tracking Total 24 | . 4 3 . 4 5 4 10 6 5 10 2 8 6 4 5 8 5 7 11 19 24 Tactical Retreats 61 | . 2 1 . . 5 . 4 1 1 10 . 1 1 1 . 2 4 7 . 17 4 Traps | -11 -10 -10 -10 -9 -8 -8 -7 -7 -6 -6 -5 -5 -4 -4 -4 -4 -3 -3 -3 -2 -2 ------- Run | Scr Mat Min Exi Min Mat Gar Fac Gar Fac Gar Fac Gar Fac Gar Fac Gar Res Qua Sec Res Tes Traps Triggered 69 | . 2 . . . 3 8 . 11 1 12 . 9 1 7 . 8 2 2 1 2 . Indirectly . | . . . . . . . . . . . . . . . . . . . . . . Trap Hack Attempts . | . . . . . . . . . . . . . . . . . . . . . . Triggered . | . . . . . . . . . . . . . . . . . . . . . . Disarmed . | . . . . . . . . . . . . . . . . . . . . . . Reprogrammed . | . . . . . . . . . . . . . . . . . . . . . . Reused . | . . . . . . . . . . . . . . . . . . . . . . Traps Extracted . | . . . . . . . . . . . . . . . . . . . . . . Installed . | . . . . . . . . . . . . . . . . . . . . . . Triggered 3 | . . . . . . . . . . 3 . . . . . . . . . . . Machines | -11 -10 -10 -10 -9 -8 -8 -7 -7 -6 -6 -5 -5 -4 -4 -4 -4 -3 -3 -3 -2 -2 ---------- Run | Scr Mat Min Exi Min Mat Gar Fac Gar Fac Gar Fac Gar Fac Gar Fac Gar Res Qua Sec Res Tes Machines Disabled 75 | . . . . . 2 3 5 5 3 4 . 7 2 4 9 4 3 9 8 4 3 Max in Single Turn 2 | . . . . . 1 1 2 1 1 1 . 1 1 1 1 1 1 2 1 1 1 Garrison Access 7 | . . . . . . . 1 . 1 . . . 1 . 1 . 1 1 . 1 . Garrison Relay 23 | . . . . . . 3 . 4 . 4 . 4 . 4 . 4 . . . . . Machines Sabotaged . | . . . . . . . . . . . . . . . . . . . . . . Garrisons Compromised . | . . . . . . . . . . . . . . . . . . . . . . Overloaded Fab Kills . | . . . . . . . . . . . . . . . . . . . . . . Fab Network Shutdowns 1 | . . . . . . . . . . . . . . . . . . . . 1 . Hacking | -11 -10 -10 -10 -9 -8 -8 -7 -7 -6 -6 -5 -5 -4 -4 -4 -4 -3 -3 -3 -2 -2 --------- Run | Scr Mat Min Exi Min Mat Gar Fac Gar Fac Gar Fac Gar Fac Gar Fac Gar Res Qua Sec Res Tes Machines Accessed 74 | . 6 . 2 . 9 . 13 . 8 . 1 . 5 . 5 . 3 7 6 7 2 Terminals 39 | . 4 . . . 6 . 6 . . . . . 1 . 3 . 2 6 5 4 2 Fabricators 6 | . . . . . . . 2 . 2 . . . 1 . . . . . . 1 . Repair Stations 4 | . 1 . . . . . 1 . . . . . 1 . . . . . . 1 . Recycling Units 7 | . 1 . . . 1 . 2 . 2 . . . . . . . 1 . . . . Scanalyzers 4 | . . . . . 1 . . . 2 . . . . . . . . . 1 . . Garrison Access 12 | . . . . . 1 . 2 . 2 . 1 . 2 . 2 . . 1 . 1 . Total Hacks 193 | . 21 . 5 . 35 . 33 . 17 . 3 . 11 . 9 . 8 17 16 14 4 Successful 101 | . 11 . 5 . 20 . 20 . 11 . 2 . 5 . 3 . 3 7 5 7 2 Failed 92 | . 10 . . . 15 . 13 . 6 . 1 . 6 . 6 . 5 10 11 7 2 Catastrophic 21 | . . . . . 2 . 5 . 1 . . . 1 . 1 . 2 2 3 3 1 Database Lockouts . | . . . . . . . . . . . . . . . . . . . . . . Manual 90 | . 13 . 1 . 20 . 12 . 4 . 1 . 4 . 6 . 3 9 12 4 1 Terminals 116 | . 17 . . . 27 . 17 . . . . . 3 . 4 . 6 15 15 8 4 Fabricators 11 | . . . . . . . 2 . 4 . . . 2 . . . . . . 3 . Repair Stations 7 | . 2 . . . . . 2 . . . . . 1 . . . . . . 2 . Recycling Units 14 | . 2 . . . 1 . 6 . 3 . . . . . . . 2 . . . . Scanalyzers 10 | . . . . . 4 . . . 5 . . . . . . . . . 1 . . Garrison Access 30 | . . . . . 3 . 6 . 5 . 3 . 5 . 5 . . 2 . 1 . Terminal Hacks 38 | . 6 . 5 . 9 . 3 . . . . . 1 . 1 . 3 4 2 2 2 Record 4 | . . . 4 . . . . . . . . . . . . . . . . . . Part Schematic 1 | . . . . . . . . . . . . . . . . . 1 . . . . Robot Schematic 2 | . 1 . . . . . 1 . . . . . . . . . . . . . . Robot Analysis 5 | . 2 . . . . . . . . . . . 1 . . . . 1 . 1 . Prototype ID Bank 1 | . 1 . . . . . . . . . . . . . . . . . . . . Open Door 1 | . . . . . . . . . . . . . . . . . . . 1 . . Branch Access Points 3 | . 1 . . . 1 . . . . . . . . . . . . . . 1 . Terminal Index 2 | . . . . . . . 1 . . . . . . . . . . 1 . . . Alert Level 1 | . . . . . 1 . . . . . . . . . . . . . . . . Unreport Threat 7 | . . . . . 2 . . . . . . . . . 1 . 1 2 1 . . Recall Extermination 1 | . . . . . . . 1 . . . . . . . . . . . . . . Recall Reinforcements 1 | . . . . . 1 . . . . . . . . . . . . . . . . Recall Assault 1 | . . . . . . . . . . . . . . . . . 1 . . . . Zone Layout 6 | . 1 . . . 4 . . . . . . . . . . . . . . . 1 EX-Prototype ID Bank 1 | . . . 1 . . . . . . . . . . . . . . . . . . Protovariant Controls 1 | . . . . . . . . . . . . . . . . . . . . . 1 Fabricator Hacks 4 | . . . . . . . . . 2 . . . . . . . . . . 2 . Load Schematic 2 | . . . . . . . . . 1 . . . . . . . . . . 1 . Build 2 | . . . . . . . . . 1 . . . . . . . . . . 1 . Repair Station Hacks 5 | . 2 . . . . . 2 . . . . . . . . . . . . 1 . Scan Component 3 | . 1 . . . . . 1 . . . . . . . . . . . . 1 . Repair 2 | . 1 . . . . . 1 . . . . . . . . . . . . . . Recycling Unit Hacks 8 | . 1 . . . 1 . 4 . 2 . . . . . . . . . . . . Process 2 | . . . . . . . 2 . . . . . . . . . . . . . . Retrieve Matter 3 | . 1 . . . . . 2 . . . . . . . . . . . . . . Retrieve Components 3 | . . . . . 1 . . . 2 . . . . . . . . . . . . Scanalyzer 7 | . . . . . 3 . . . 4 . . . . . . . . . . . . Insert Component 3 | . . . . . 1 . . . 2 . . . . . . . . . . . . Analyze 4 | . . . . . 2 . . . 2 . . . . . . . . . . . . Garrison Access Hacks 14 | . . . . . 1 . 2 . 2 . 2 . 2 . 2 . . 2 . 1 . Unlock Access 7 | . . . . . 1 . 1 . 1 . 1 . 1 . 2 . . . . . . Seal Access 5 | . . . . . . . 1 . 1 . . . 1 . . . . 1 . 1 . Coupler Status 2 | . . . . . . . . . . . 1 . . . . . . 1 . . . Unauthorized Hacks 25 | . 2 . . . 6 . 9 . 1 . . . 2 . . . . 1 3 1 . Terminals 14 | . 2 . . . 4 . 5 . . . . . . . . . . 1 2 . . Track 6 | . 1 . . . 2 . 2 . . . . . . . . . . . 1 . . Assimilate 1 | . . . . . . . 1 . . . . . . . . . . . . . . Botnet 4 | . 1 . . . 2 . 1 . . . . . . . . . . . . . . Disrupt 1 | . . . . . . . . . . . . . . . . . . . 1 . . Operators 2 | . . . . . . . 1 . . . . . . . . . . 1 . . . Fabricators 1 | . . . . . . . . . . . . . . . . . . . . 1 . Prioritize 1 | . . . . . . . . . . . . . . . . . . . . 1 . Repair Stations 1 | . . . . . . . . . . . . . 1 . . . . . . . . Mechanics 1 | . . . . . . . . . . . . . 1 . . . . . . . . Recycling Units . | . . . . . . . . . . . . . . . . . . . . . . Scanalyzers 1 | . . . . . . . . . . . . . . . . . . . 1 . . Researchers 1 | . . . . . . . . . . . . . . . . . . . 1 . . Garrison Access 8 | . . . . . 2 . 4 . 1 . . . 1 . . . . . . . . Restock 2 | . . . . . 1 . 1 . . . . . . . . . . . . . . Reprogram 4 | . . . . . 1 . 2 . 1 . . . . . . . . . . . . Eject 2 | . . . . . . . 1 . . . . . 1 . . . . . . . . Data Cores Recovered 1 | . . . . . . . . . . . . . . . . . . 1 . . . Used . | . . . . . . . . . . . . . . . . . . . . . . Hacking Detections 63 | . 4 . . . 8 . 11 . 6 . 1 . 5 . 5 . 3 7 5 6 2 Full Trace Events 8 | . . . . . . . 1 . 1 . 1 . 1 . 2 . . 1 . . 1 Feedback Events 2 | . . . . . . . . . . . . . . . 1 . . . . . 1 Corruption 2 | . . . . . . . . . . . . . . . 1 . . . . . 1 Feedback Blocked . | . . . . . . . . . . . . . . . . . . . . . . Robot Schematics Acquired 2 | . 1 . . . . . 1 . . . . . . . . . . . . . . Robots Built 3 | . . . . . . . . . 3 . . . . . . . . . . . . Matter 252 | . . . . . . . . . 252 . . . . . . . . . . . . Time 44 | . . . . . . . . . 44 . . . . . . . . . . . . Total Robot Build Rating 12 | . . . . . . . . . 12 . . . . . . . . . . . . Part Schematics Acquired 3 | . . . . . 1 . . . 1 . . . . . . . 1 . . . . Parts Built 2 | . . . . . . . . . . . . . . . . . . . . 2 . Matter 278 | . . . . . . . . . . . . . . . . . . . . 278 . Time 69 | . . . . . . . . . . . . . . . . . . . . 69 . Total Part Build Rating 18 | . . . . . . . . . . . . . . . . . . . . 18 . Parts Repaired 2 | . 1 . . . . . 1 . . . . . . . . . . . . . . Time 45 | . 26 . . . . . 19 . . . . . . . . . . . . . . Parts Recycled . | . . . . . . . . . . . . . . . . . . . . . . Recycled Matter 62 | . . . . . . . 62 . . . . . . . . . . . . . . Retrieved Matter 286 | . 224 . . . . . 62 . . . . . . . . . . . . . . Retrieved Components 12 | . . . . . 4 . . . 8 . . . . . . . . . . . . Parts Scanalyzed 3 | . . . . . 1 . . . 2 . . . . . . . . . . . . Part Schematics Acquired 2 | . . . . . 1 . . . 1 . . . . . . . . . . . . Parts Damaged . | . . . . . . . . . . . . . . . . . . . . . . Bothacking | -11 -10 -10 -10 -9 -8 -8 -7 -7 -6 -6 -5 -5 -4 -4 -4 -4 -3 -3 -3 -2 -2 ------------ Run | Scr Mat Min Exi Min Mat Gar Fac Gar Fac Gar Fac Gar Fac Gar Fac Gar Res Qua Sec Res Tes Used RIF Installer 6 | . . . . . . 1 . 1 . 1 . 1 . 1 . 1 . . . . . Robot Detection 1 | . . . . . . . . 1 . . . . . . . . . . . . . Alert ID Control 1 | . . . . . . . . . . . . . . . . 1 . . . . . Program Shield 1 | . . . . . . . . . . 1 . . . . . . . . . . . Autooverride 1 | . . . . . . . . . . . . 1 . . . . . . . . . Autoassimilate 1 | . . . . . . . . . . . . . . 1 . . . . . . . Robots Hacked 127 | . . . . . . 6 18 6 7 7 3 4 14 16 13 11 3 5 2 10 2 Non-combat 29 | . . . . . . . 8 . 4 . 1 . 2 . 4 . . 3 . 6 1 Combat 98 | . . . . . . 6 10 6 3 7 2 4 12 16 9 11 3 2 2 4 1 Autooverrided 13 | . . . . . . . . . . . . 1 3 5 2 1 . . . 1 . Autoassimilated 9 | . . . . . . . . . . . . . . 3 . 4 1 . . 1 . Robot Hacks Applied 120 | . . . . . . 6 24 6 8 7 4 3 15 8 13 6 2 5 2 8 3 parse_system 1 | . . . . . . . 1 . . . . . . . . . . . . . . no_distress 1 | . . . . . . . 1 . . . . . . . . . . . . . . find_chute 1 | . . . . . . . 1 . . . . . . . . . . . . . . ignore_repairs 3 | . . . . . . . . . 3 . . . . . . . . . . . . find_fabricator 3 | . . . . . . . 1 . . . 1 . . . 1 . . . . . . drop_inventory 10 | . . . . . . . 3 . . . 1 . . . 2 . . 1 . 3 . locate_stockpiles 1 | . . . . . . . . . . . . . . . 1 . . . . . . purge_threat 4 | . . . . . . . 2 . . . . . 2 . . . . . . . . block_reporting 1 | . . . . . . . . . . . . . . . . . . 1 . . . map_route 6 | . . . . . . . 2 . . . . . 1 . 1 . . . . 1 1 mark_security 1 | . . . . . . . 1 . . . . . . . . . . . . . . disable_scanner 1 | . . . . . . . . . . . . . . . . . . . . . 1 locate_prototypes 3 | . . . . . . . . . . . . . . . . . . 1 1 . 1 find_garrison 5 | . . . . . . . 1 . 1 . . . 2 . 1 . . . . . . spike_heat 1 | . . . . . . . . . . . . . 1 . . . . . . . . amplify_resonance 2 | . . . . . . . . . . . . 2 . . . . . . . . . wipe_record 1 | . . . . . . . . . . . . . . . . . . . . 1 . reboot_system 5 | . . . . . . . 2 1 . . . . 1 . . 1 . . . . . overwrite_iff 6 | . . . . . . . 1 . . 4 . . . . . 1 . . . . . streamctrl_high 3 | . . . . . . . 1 . . . . 1 . . 1 . . . . . . formatsys_low 6 | . . . . . . . 1 . 1 . . . . . 1 . . 1 . 2 . formatsys_high 55 | . . . . . . 6 6 5 3 3 2 . 8 8 5 4 2 1 1 1 . Relay Couplers Released 113 | . . . . . 4 13 7 16 2 13 . 15 2 15 8 15 3 . . . . Ejected 1 | . . . . . . . 1 . . . . . . . . . . . . . . Machine Destruction 100 | . . . . . . 13 2 16 2 13 . 15 2 15 4 15 3 . . . . Programmers 12 | . . . . . 4 . 4 . . . . . . . 4 . . . . . . Attached 58 | . . . . . . 6 7 3 4 5 3 2 6 7 5 3 2 1 1 2 1 Robots Rewired 20 | . . . . . . 3 . . . 10 . . . 6 1 . . . . . . Allies Hacked 2 | . . . . . . . 1 . . . . . . . . . . 1 . . . Hacks Repelled . | . . . . . . . . . . . . . . . . . . . . . . Allies | -11 -10 -10 -10 -9 -8 -8 -7 -7 -6 -6 -5 -5 -4 -4 -4 -4 -3 -3 -3 -2 -2 -------- Run | Scr Mat Min Exi Min Mat Gar Fac Gar Fac Gar Fac Gar Fac Gar Fac Gar Res Qua Sec Res Tes Total Allies 120 | . . . . 3 1 6 11 5 10 17 2 2 10 22 10 10 3 2 1 5 . Largest Group 12 | . . . . 3 3 4 4 3 5 10 11 8 7 12 12 4 3 1 1 1 . Highest-Rated Group 596 | . . . . 40 40 69 119 77 169 287 353 276 347 561 596 157 106 56 56 64 . Highest-Rated Ally 81 | . . . . 16 16 21 55 32 41 41 49 81 56 56 58 49 64 56 56 64 . Total Orders 58 | . . . . . 2 4 7 2 2 4 . 3 11 10 3 8 . . . 2 . STAY 12 | . . . . . . . 2 . . 1 . 2 2 4 . 1 . . . . . GOTO 23 | . . . . . 1 2 4 1 1 . . . 5 4 1 4 . . . . . ROAM 1 | . . . . . . . . 1 . . . . . . . . . . . . . FOLLOW 18 | . . . . . 1 2 1 . . 3 . 1 4 2 1 3 . . . . . AID 4 | . . . . . . . . . 1 . . . . . 1 . . . . 2 . Ally Attacks 700 | . . . . . 23 18 88 51 37 44 18 59 73 43 139 69 12 6 5 15 . Total Damage 18961 | . . . . . 218 292 1791 943 1426 932 581 2127 2401 684 4916 1226 313 325 182 604 . Kills 141 | . . . . . 1 1 17 10 13 4 7 19 19 5 26 12 3 . 1 3 . Allies Corrupted 5 | . . . . . . . 1 . . . . 1 1 . . . . 1 . 1 . Allies Melted 3 | . . . . . 1 . . 1 . . . . . . 1 . . . . . . Intel | -11 -10 -10 -10 -9 -8 -8 -7 -7 -6 -6 -5 -5 -4 -4 -4 -4 -3 -3 -3 -2 -2 ------- Run | Scr Mat Min Exi Min Mat Gar Fac Gar Fac Gar Fac Gar Fac Gar Fac Gar Res Qua Sec Res Tes Robot Analysis Total 5 | . 2 . . . . . . . . . . . 1 . . . . 1 . 1 . Derelict Logs Recovered 1 | . . 1 . . . . . . . . . . . . . . . . . . . Drone Launches . | . . . . . . . . . . . . . . . . . . . . . . Drone Recoveries . | . . . . . . . . . . . . . . . . . . . . . . Exploration | -11 -10 -10 -10 -9 -8 -8 -7 -7 -6 -6 -5 -5 -4 -4 -4 -4 -3 -3 -3 -2 -2 ------------- Run | Scr Mat Min Exi Min Mat Gar Fac Gar Fac Gar Fac Gar Fac Gar Fac Gar Res Qua Sec Res Tes Turns Passed 36723 | 113 1910 1450 695 472 3306 1904 2104 1909 1446 2397 421 2379 2041 2848 1013 1810 1020 2508 1650 2804 523 Spaces Moved 16697 | 52 894 731 384 200 1335 1107 1197 949 689 1121 223 1089 989 1304 434 831 398 1005 590 1028 147 Core 10 | 7 . . . . . . . . . . . . . . . . . . . . 3 Treads 10444 | 45 894 731 384 200 326 . . . . . 52 1089 989 1304 434 831 398 1005 590 1028 144 Legs 301 | . . . . . 301 . . . . . . . . . . . . . . . . Wheels 5942 | . . . . . 708 1107 1197 949 689 1121 171 . . . . . . . . . . Hover . | . . . . . . . . . . . . . . . . . . . . . . Flight . | . . . . . . . . . . . . . . . . . . . . . . Fastest Speed 50 | 50 160 180 180 180 140 130 130 150 150 150 135 180 180 180 189 189 189 180 182 160 50 Average Speed 174 | 147 176 180 180 204 193 139 141 158 157 155 154 199 180 190 189 189 189 191 185 171 187 Slowest Speed 330 | 160 180 180 180 220 330 140 160 160 160 170 200 200 180 195 189 189 220 220 195 190 240 Overloaded Moves . | . . . . . . . . . . . . . . . . . . . . . . Propulsion Burnouts . | . . . . . . . . . . . . . . . . . . . . . . Robots Hopped . | . . . . . . . . . . . . . . . . . . . . . . Cave-ins Triggered . | . . . . . . . . . . . . . . . . . . . . . . Teleports 1 | . . . . . . . . . . . . . . . . . . . 1 . . Exploration Rate (%) 53 | 4 98 94 69 44 84 85 33 97 16 89 5 91 18 90 16 74 14 71 31 31 25 Regions Visited 21 Branch Regions 6 Pre-discovered Areas 1 | . . . 1 . . . . . . . . . . . . . . . . . . Known Exits Taken 8 | . 1 . . . 1 . 1 . 1 . 1 . 1 . 1 . . . . 1 . Unknown Exits Taken 7 | 1 . 1 1 1 . . . . . . . . . . . . 1 1 1 . . Scrap Searched 4 | . . 2 . 2 . . . . . . . . . . . . . . . . . Spaces Dug 158 | . . . . . 6 1 19 4 13 . . 16 2 . 19 9 7 27 9 23 3 Terrain Destroyed 533 | . 17 16 . 8 15 10 25 17 42 5 . 42 21 16 24 15 9 105 14 125 7 Melee 89 | . . . . . 6 . 19 . 12 . . . . . . 1 6 26 1 15 3 Projectile 139 | . . . . . 4 2 1 8 3 . . 12 21 13 5 1 3 18 13 31 4 AOE 305 | . 17 16 . 8 5 8 5 9 27 5 . 30 . 3 19 13 . 61 . 79 . Actions | -11 -10 -10 -10 -9 -8 -8 -7 -7 -6 -6 -5 -5 -4 -4 -4 -4 -3 -3 -3 -2 -2 --------- Run | Scr Mat Min Exi Min Mat Gar Fac Gar Fac Gar Fac Gar Fac Gar Fac Gar Res Qua Sec Res Tes Total 21805 | 75 1060 800 391 229 1822 1383 1458 1216 940 1567 284 1213 1161 1579 565 1017 575 1388 1055 1745 282 Wait 1348 | 8 44 1 . . 213 76 59 28 90 93 23 4 41 98 35 65 72 75 99 192 32 Move 16677 | 51 893 730 383 199 1334 1106 1196 948 688 1120 223 1088 988 1303 433 830 397 1004 589 1027 147 Hop . | . . . . . . . . . . . . . . . . . . . . . . Pick Up 352 | 4 14 8 3 2 32 15 19 25 16 33 5 14 11 25 6 14 5 37 25 36 3 Fast Attach 140 | 7 2 . . 2 12 3 2 . 6 13 3 2 6 6 2 6 13 24 14 12 5 Attach 208 | . 2 2 . 2 14 4 10 11 6 16 4 3 8 11 5 4 6 25 27 33 15 Detach 27 | . . . . . 2 . . . . 1 . 1 1 . . . 3 3 8 4 4 Swap 390 | . 10 4 2 2 22 20 38 17 27 22 7 11 24 24 27 15 17 31 29 33 8 Drop 317 | . 6 8 3 1 33 15 12 12 23 17 6 14 14 25 4 16 12 52 28 15 1 Fire 1841 | 5 89 44 . 21 152 87 85 92 70 120 13 58 68 78 52 45 42 82 208 378 52 Melee 178 | . . . . . 6 . 37 . 14 5 . . . 1 . 3 8 55 28 15 6 Ram 7 | . . . . . 2 1 . . . 1 . . . . . . . . . . 3 Kick . | . . . . . . . . . . . . . . . . . . . . . . Crush 6 | . . . . . . . . . . . . . . . . . . . . . 6 Escape Stasis 277 | . . . . . . 55 . 83 . 94 . 18 . 8 . 19 . . . . . Rewire 37 | . . 3 . . . 1 . . . 32 . . . . 1 . . . . . . Trap . | . . . . . . . . . . . . . . . . . . . . . . Miscellaneous . | . . . . . . . . . . . . . . . . . . . . . . Route ------- -11/Scrapyard -10/Materials (discovered 4 exits: [*Mat x3] / *Min) -10/Mines (discovered 3 exits: [*Mat x2] / *Exi) -10/Exiles -9/Mines -8/Materials (discovered 3 exits: *Fac x2 / Gar) -8/Garrison (discovered 3 exits: *Fac x3) -7/Factory (discovered 5 exits: *Fac x2 / [*Sto] / [*Low] / Gar) -7/Garrison (discovered 3 exits: *Fac x3) -6/Factory (discovered 2 exits: [*Low] / Gar) -6/Garrison (discovered 3 exits: *Fac x3) -5/Factory -5/Garrison (discovered 3 exits: *Fac x3) -4/Factory -4/Garrison (discovered 3 exits: *Fac x3) -4/Factory (discovered 3 exits: *Res / [Upp] / Gar) -4/Garrison (discovered 3 exits: *Res x3) -3/Research -3/Quarantine -3/Section 7 -2/Research (discovered 2 exits: *Tes x2) -2/Testing History --------- Turn | Location | Event 5 | -11/Scrapyard | Discovered new exit (range 16) 114 | -11/Scrapyard | Entered Materials 305 | -10/Materials | Build established: Mutant 862 | -10/Materials | Discovered new exit (range 16) 1074 | -10/Materials | Identified exit to Mines 1100 | -10/Materials | Discovered new exit (range 12) 1322 | -10/Materials | Repaired Lgt. Treads 1757 | -10/Materials | Discovered new exit (range 13) 1937 | -10/Materials | Discovered new exit (range 7) 2024 | -10/Materials | Entered Mines 2025 | -10/Mines | Assembled infested the area 2040 | -10/Mines | Met a Derelict bent on vengeance 2367 | -10/Mines | Discovered new exit (range 11) 2710 | -10/Mines | Learned Materials non-interactive machine intel 2754 | -10/Mines | Discovered new exit (range 10) 2754 | -10/Mines | A weapon hastily lodged in a ceiling crevice suddenly fell to the ground 3466 | -10/Mines | Discovered new exit (range 5) 3474 | -10/Mines | Entered Exiles 3518 | -10/Exiles | Met 8R-AWN 3546 | -10/Exiles | Met EX-HEX 3631 | -10/Exiles | Met EX-DEC 3674 | -10/Exiles | Learned location of Zion (-6) 3856 | -10/Exiles | Met EX-BIN 3881 | -10/Exiles | Aligned with FarCom system 3883 | -10/Exiles | Given EX-Vault access code 3924 | -10/Exiles | Opened EX-Vault 3941 | -10/Exiles | Found PSU Rigger 3951 | -10/Exiles | Found Superbattery 3993 | -10/Exiles | Warned to stay clear of 0b10 Research branches 4057 | -10/Exiles | Build established: Hauler-Mutant 4155 | -10/Exiles | Discovered new exit (range 10) 4169 | -10/Exiles | Stole two prototypes: Superbattery, PSU Rigger 4169 | -10/Exiles | Entered Mines 4345 | -9/Mines | Core integrity fell below 50% 4390 | -9/Mines | Lost 4 parts (1p1n2w) 4559 | -9/Mines | Discovered new exit (range 3) 4601 | -9/Mines | Assisted by bots powering up and referring to "LRC-V3" 4641 | -9/Mines | Entered Materials 4641 | -8/Materials | Accompanied by 3 allies 4641 | -8/Materials | Evolved 4 slots: Utility x4 4642 | -8/Materials | Loaded intel: 33 non-interactive machine locations 5229 | -8/Materials | Discovered new exit (range 7) 6407 | -8/Materials | Lost 3 parts (1p1n1w) 6583 | -8/Materials | Discovered new exit (range 16) 7494 | -8/Materials | Garrison activated, responded to threat 7827 | -8/Materials | Identified exit to Garrison 7888 | -8/Materials | Garrison activated, responded to threat 7947 | -8/Materials | Entered Garrison 7988 | -8/Garrison | Triggered checkpoint 8001 | -8/Garrison | Triggered checkpoint 8021 | -8/Garrison | Triggered checkpoint 8073 | -8/Garrison | Core integrity fell below 50% 8201 | -8/Garrison | Discovered new exit (range 15) 8230 | -8/Garrison | Installed Relay Interface Framework 8516 | -8/Garrison | Triggered checkpoint 8529 | -8/Garrison | Garrison Relay disabled 8667 | -8/Garrison | Triggered checkpoint 8707 | -8/Garrison | Garrison Relay disabled 8803 | -8/Garrison | Triggered checkpoint 8807 | -8/Garrison | Core integrity fell below 20% 8924 | -8/Garrison | Build established: Hauler-Skirmisher 8960 | -8/Garrison | Discovered new exit (range 12) 9218 | -8/Garrison | Triggered checkpoint 9295 | -8/Garrison | Garrison Relay disabled 9530 | -8/Garrison | Build established: Hauler-Mutant 9702 | -8/Garrison | Discovered new exit (range 13) 9851 | -8/Garrison | Entered Factory 9851 | -7/Factory | Accompanied by 6 allies 9851 | -7/Factory | Evolved 2 slots: Utility x2 9853 | -7/Factory | FarCom data flow suspended 9946 | -7/Factory | Build established: Bothacker-Mutant 10040 | -7/Factory | Garrison activated, responded to threat 10350 | -7/Factory | Discovered new exit (range 43) 11042 | -7/Factory | Discovered new exit (range 10) 11072 | -7/Factory | Discovered new exit (range 16) 11125 | -7/Factory | Repaired Hrd. Medium Armor Plating 11308 | -7/Factory | Discovered new exit (range 15) 11591 | -7/Factory | Build established: Hauler-Mutant 11754 | -7/Factory | Identified exit to Garrison 11792 | -7/Factory | Garrison activated, responded to threat 11851 | -7/Factory | First assault squad dispatched 11955 | -7/Factory | Entered Garrison 12005 | -7/Garrison | Triggered checkpoint 12117 | -7/Garrison | Garrison Relay disabled 12243 | -7/Garrison | Triggered checkpoint 12316 | -7/Garrison | Triggered checkpoint 12362 | -7/Garrison | Triggered checkpoint 12445 | -7/Garrison | Discovered new exit (range 15) 12566 | -7/Garrison | Triggered checkpoint 12619 | -7/Garrison | Lost 4 parts (2p1u1w) 12626 | -7/Garrison | Garrison Relay disabled 12914 | -7/Garrison | Build established: Bothacker-Mutant 12924 | -7/Garrison | Triggered checkpoint 13028 | -7/Garrison | Triggered checkpoint 13067 | -7/Garrison | Garrison Relay disabled 13119 | -7/Garrison | Discovered new exit (range 9) 13275 | -7/Garrison | Discovered new exit (range 14) 13306 | -7/Garrison | Expanded RIF knowledge: Robot Detection 13726 | -7/Garrison | Triggered checkpoint 13788 | -7/Garrison | Garrison Relay disabled 13864 | -7/Garrison | Entered Factory 13864 | -6/Factory | Evolved 2 slots: Utility x2 14459 | -6/Factory | Found Hvy. Reactive Plating 14464 | -6/Factory | Found Hvy. Reactive Plating 14636 | -6/Factory | Fabricated B-48 Gladiator? 15179 | -6/Factory | Discovered new exit (range 15) 15297 | -6/Factory | Identified exit to Garrison 15310 | -6/Factory | Entered Garrison 15310 | -6/Garrison | Accompanied by 5 allies 15372 | -6/Garrison | Triggered checkpoint 15437 | -6/Garrison | Lost 3 parts (1p1u1w) 15520 | -6/Garrison | Triggered checkpoint 15549 | -6/Garrison | Garrison Relay disabled 15649 | -6/Garrison | Triggered checkpoint 15725 | -6/Garrison | Lost 3 parts (1n1u1w) 15744 | -6/Garrison | Triggered checkpoint 15752 | -6/Garrison | Destroyed 7 combat bots 15906 | -6/Garrison | Triggered checkpoint 15920 | -6/Garrison | Triggered checkpoint 15921 | -6/Garrison | Triggered checkpoint 15983 | -6/Garrison | Discovered new exit (range 14) 16036 | -6/Garrison | Build established: Hauler-Mutant 16172 | -6/Garrison | Discovered new exit (range 8) 16278 | -6/Garrison | Triggered checkpoint 16359 | -6/Garrison | Discovered new exit (range 14) 16402 | -6/Garrison | Expanded RIF knowledge: Program Shield 16476 | -6/Garrison | Garrison Relay disabled 16648 | -6/Garrison | Triggered checkpoint 16673 | -6/Garrison | Build established: Bothacker-Mutant 16889 | -6/Garrison | System corruption reached 10% 16922 | -6/Garrison | Lost 4 parts (3u1w) 17248 | -6/Garrison | Triggered checkpoint 17296 | -6/Garrison | Garrison Relay disabled 17533 | -6/Garrison | Garrison Relay disabled 17707 | -6/Garrison | Entered Factory 17707 | -5/Factory | Accompanied by 10 allies 17707 | -5/Factory | Evolved 2 slots: Power x1, Propulsion x1 17965 | -5/Factory | Garrison activated, responded to threat 18113 | -5/Factory | Identified exit to Garrison 18128 | -5/Factory | Entered Garrison 18128 | -5/Garrison | Accompanied by 8 allies 18190 | -5/Garrison | Triggered checkpoint 18198 | -5/Garrison | Spotted B-75 Beast 18209 | -5/Garrison | Hijacked Beast 6a control node with streamctrl_high 18210 | -5/Garrison | Triggered checkpoint 18227 | -5/Garrison | Triggered checkpoint 18234 | -5/Garrison | Triggered checkpoint 18268 | -5/Garrison | Destroyed Beast 6a 18486 | -5/Garrison | Discovered new exit (range 9) 18608 | -5/Garrison | Discovered new exit (range 9) 18734 | -5/Garrison | Discovered new exit (range 9) 18764 | -5/Garrison | Expanded RIF knowledge: Autooverride 18816 | -5/Garrison | Triggered checkpoint 18865 | -5/Garrison | Garrison Relay disabled 19063 | -5/Garrison | Build established: Botlord-Mutant 19132 | -5/Garrison | Triggered checkpoint 19150 | -5/Garrison | Garrison Relay disabled 19338 | -5/Garrison | Triggered checkpoint 19387 | -5/Garrison | Garrison Relay disabled 19869 | -5/Garrison | Triggered checkpoint 19915 | -5/Garrison | Garrison Relay disabled 20507 | -5/Garrison | Entered Factory 20507 | -4/Factory | Evolved 2 slots: Propulsion x1, Utility x1 20643 | -4/Factory | Found Unknown Device 20643 | -4/Factory | Identified Quantum Capacitor 22257 | -4/Factory | First assault squad dispatched 22541 | -4/Factory | Identified exit to Garrison 22548 | -4/Factory | Entered Garrison 22618 | -4/Garrison | Triggered checkpoint 22682 | -4/Garrison | Triggered checkpoint 22782 | -4/Garrison | Triggered checkpoint 22815 | -4/Garrison | Discovered new exit (range 11) 22973 | -4/Garrison | Triggered checkpoint 23002 | -4/Garrison | Discovered new exit (range 14) 23065 | -4/Garrison | Expanded RIF knowledge: Autoassimilate 23212 | -4/Garrison | Triggered checkpoint 23221 | -4/Garrison | Garrison Relay disabled 23470 | -4/Garrison | Triggered checkpoint 23586 | -4/Garrison | Triggered checkpoint 23684 | -4/Garrison | Garrison Relay disabled 24012 | -4/Garrison | Discovered new exit (range 14) 24111 | -4/Garrison | Triggered checkpoint 24253 | -4/Garrison | Garrison Relay disabled 24981 | -4/Garrison | Garrison Relay disabled 25005 | -4/Garrison | Triggered checkpoint 25396 | -4/Garrison | Entered Factory 25396 | -4/Factory | Accompanied by 12 allies 25464 | -4/Factory | Identified exit to Garrison 26032 | -4/Factory | Spotted B-86 Titan 26068 | -4/Factory | Discovered new exit (range 56) 26327 | -4/Factory | Discovered new exit (range 4) 26382 | -4/Factory | Identified exit to Garrison 26396 | -4/Factory | First assault squad dispatched 26409 | -4/Factory | Entered Garrison 26409 | -4/Garrison | Accompanied by 3 allies 26473 | -4/Garrison | Triggered checkpoint 26502 | -4/Garrison | Triggered checkpoint 26527 | -4/Garrison | Triggered checkpoint 26628 | -4/Garrison | Triggered checkpoint 26727 | -4/Garrison | Discovered new exit (range 14) 26977 | -4/Garrison | Discovered new exit (range 10) 27168 | -4/Garrison | Discovered new exit (range 11) 27202 | -4/Garrison | Expanded RIF knowledge: Alert ID Control 27264 | -4/Garrison | Triggered checkpoint 27292 | -4/Garrison | Garrison Relay disabled 27536 | -4/Garrison | Triggered checkpoint 27576 | -4/Garrison | Garrison Relay disabled 27800 | -4/Garrison | Triggered checkpoint 27898 | -4/Garrison | Garrison Relay disabled 28112 | -4/Garrison | Triggered checkpoint 28160 | -4/Garrison | Garrison Relay disabled 28219 | -4/Garrison | Entered Research 28219 | -3/Research | Accompanied by 2 allies 28219 | -3/Research | Evolved 2 slots: Utility x2 28519 | -3/Research | Spotted B-86 Titan 29012 | -3/Research | First assault squad dispatched 29148 | -3/Research | System corruption reached 10% 29156 | -3/Research | Discovered new exit (range 15) 29239 | -3/Research | Entered Quarantine 29320 | -3/Quarantine | Found Phase Redirector 29418 | -3/Quarantine | Found Core Stripper 30311 | -3/Quarantine | Lost 4 parts (1p2u1w) 30318 | -3/Quarantine | Destroyed 7 combat bots 30419 | -3/Quarantine | Found Phase Armor 30696 | -3/Quarantine | Found Prototype Hackware 30849 | -3/Quarantine | Found Sigix Broadsword 31302 | -3/Quarantine | Found Dimensional Node Initializer 31310 | -3/Quarantine | Found Transdimensional Reconstructor 31394 | -3/Quarantine | Spotted Fortress 31402 | -3/Quarantine | Destroyed Fortress 31407 | -3/Quarantine | Found Prototype Device 31407 | -3/Quarantine | Identified Exp. Force Field 31410 | -3/Quarantine | Found Prototype Device 31410 | -3/Quarantine | Identified Thermal Barrier 31429 | -3/Quarantine | Found Prototype Protection 31429 | -3/Quarantine | Identified Centrium Heavy Armor Plating 31446 | -3/Quarantine | Found Prototype Reactor 31446 | -3/Quarantine | Identified Vortex Chain Reactor 31449 | -3/Quarantine | Found Prototype Device 31449 | -3/Quarantine | Identified EM Dispersion Field 31735 | -3/Quarantine | Discovered new exit (range 6) 31747 | -3/Quarantine | Entered Section 7 31860 | -3/Section 7 | Found Integrity Redistributor 31934 | -3/Section 7 | Found Integrated Reactor 31934 | -3/Section 7 | Installed Integrated Reactor, increased core energy generation (+2%) 32001 | -3/Section 7 | Found Integrity Redistributor 32021 | -3/Section 7 | Spotted S7 Guard 32032 | -3/Section 7 | System corruption reached 30% 32082 | -3/Section 7 | Destroyed S7 Guard 32087 | -3/Section 7 | Found Prototype Protection 32087 | -3/Section 7 | Identified Hvy. Regenerative Plating 32129 | -3/Section 7 | Found Core Regenerator 32375 | -3/Section 7 | Discovered new exit (range 8) 32383 | -3/Section 7 | Build established: Bothacker-Mutant 32399 | -3/Section 7 | Initialized slip node 32438 | -3/Section 7 | Found Core Reset Matrix 32793 | -3/Section 7 | First assault squad dispatched 32817 | -3/Section 7 | Identified Exp. Hacking Suite 32924 | -3/Section 7 | Destroyed 8 combat bots 32941 | -3/Section 7 | Lost 3 parts (1p2u) 32979 | -3/Section 7 | Used Integrity Redistributor, redistributed integrity from core (-331) 32980 | -3/Section 7 | Core integrity fell below 50% 32981 | -3/Section 7 | Used Core Regenerator, restored core integrity (+325) 33099 | -3/Section 7 | Core integrity fell below 20% 33130 | -3/Section 7 | Destroyed 8 combat bots 33165 | -3/Section 7 | Spotted S7 Guard 33176 | -3/Section 7 | Destroyed S7 Guard 33189 | -3/Section 7 | Found Hvy. Regenerative Plating 33211 | -3/Section 7 | Found Core Membrane 33211 | -3/Section 7 | Installed Core Membrane, gained immunity to corruption 33376 | -3/Section 7 | Spotted Executioner 33376 | -3/Section 7 | Spotted Executioner 33378 | -3/Section 7 | Warped through subspace to slip node 33397 | -3/Section 7 | Entered Research 33397 | -2/Research | Evolved 2 slots: Utility x1, Weapon x1 33747 | -2/Research | Spotted B-90 Cyclops 33802 | -2/Research | Spotted B-90 Cyclops 33851 | -2/Research | Spotted B-90 Cyclops 34012 | -2/Research | Garrison activated, responded to threat 34147 | -2/Research | First assault squad dispatched 34273 | -2/Research | Garrison activated, responded to threat 34390 | -2/Research | Identified exit to Testing 34522 | -2/Research | Lost 4 parts (1p3w) 34633 | -2/Research | Garrison activated, responded to threat 34702 | -2/Research | Destroyed 9 combat bots 34808 | -2/Research | Garrison activated, responded to threat 34941 | -2/Research | Build established: Hauler-Mutant 34981 | -2/Research | Fabricated Adv. Heavy Siege Treads (x2) 35000 | -2/Research | Local fabrication network quarantined 35090 | -2/Research | Destroyed 8 combat bots 35270 | -2/Research | Core integrity fell below 50% 35752 | -2/Research | High security lockdown imminent 35832 | -2/Research | High security lockdown engaged 35891 | -2/Research | Destroyed 9 combat bots 35981 | -2/Research | Destroyed 20 combat bots 35981 | -2/Research | Lost 9 parts (2p2n4u1w) 36182 | -2/Research | Lost 3 parts (2u1w) 36184 | -2/Research | Destroyed 11 combat bots 36201 | -2/Research | Entered Testing 36269 | -2/Testing | Found Prototype Hackware 36269 | -2/Testing | Identified System Mapper 36381 | -2/Testing | Found Prototype Energy Cannon 36381 | -2/Testing | Identified Cld. Nova Cannon 36451 | -2/Testing | First assault squad dispatched 36495 | -2/Testing | Protovariant out of control (PY-DYSTEGI97P) 36495 | -2/Testing | Unleashed a protovariant (PY-DYSTEGI97P) 36522 | -2/Testing | High security lockdown imminent 36602 | -2/Testing | High security lockdown engaged 36663 | -2/Testing | Lost 5 parts (1p4u) 36706 | -2/Testing | Spotted Striker 36719 | -2/Testing | Used Core Reset Matrix 36720 | -2/Testing | Released all parts (8) 36721 | -2/Testing | Core integrity fell below 20% 36723 | -2/Testing | Emitted hypermatrix ping 36723 | -2/Testing | Spotted Striker 36723 | -2/Testing | Spotted Striker 36724 | -2/Testing | Destroyed by P-80 Master with Gamma Rifle Last Messages --------------- 36720_ Lrg. Storage Unit crushed and broken. 36720_ Quantum Rifle crushed and broken. 36720_ System Backup Module crushed and broken. 36720_ Integrity Redistributor crushed and broken. 36720_ Adv. Remote Datajack crushed and broken. 36720_ Matter Compressor crushed and broken. 36720_ Penetrated by Slug. 36720_ Slug penetrates Wall. 36720_ Knocked back. 36720_ Penetrated by Slug. 36721_ Slammed into G-73 Enforcer. 36721_ Core Membrane filtered system corruption (1). 36722_ ALERT: Assault forces dispatched. 36722_ Slug penetrates Wall. 36722_ Slammed into P-80 Master. 36722_ Core Membrane filtered system corruption (1). 36723_ Emitted hypermatrix ping. 36723_ L-61 Swordsman knocked back. 36723_ Slammed into P-80 Master. 36723_ Slug penetrates Wall. Map ----- +----------------------------------------------------+ | | | | | | | | | | | | | | | | | | | | | | | | | | | | | | | ????????????????????????????????????????????????? | | ????????????????????????????????????????????????? | | ????????????????????????????????????????????????? | | ????????????????????????????????????????????????? | | ????????????????????????????????????????????????? | | ??????????????????????#####?????????????????????? | | ??????????????????????# #?????????????????????? | | ??????????????????????# #?????????????????????? | | ??????????????##K###### e###+######+???????????? | | ??????????????+ [pg p ????????? | | ??????????????+ %g!@hg ????????? | | ???????????????#K#####|##### ###???????????????? | | ???????????????????# =*=*!#?????????????????????? | | ???????????????????# /%!!!#?????????????????????? | | ???????????????????#%=%[*=#?????????????????????? | | ???????????????????#!!*%=!#?????????????????????? | | ???????????????????#!!*!=|#?????????????????????? | | ???????????????????#=*==![#?????????????????????? | | ???????????????????#####[[#?????????????????????? | | ???????????????????????*/*!?????????????????????? | | ???????????????????????[=|%#????????????????????? | | ?????????????????????? *=%[#????????????????????? | | ?????????????????????? [!%+????????????????????? | | ????????????????????? =#????????????????????? | | ?????????????????????" "" #????????????????????? | | ????????????????????"" """ #????????????????????? | | ?????????????????????" """ #????????????????????? | | ?????????????????????##???##????????????????????? | | ????????????????????????????????????????????????? | | ????????????????????????????????????????????????? | | ????????????????????????????????????????????????? | | ????????????????????????????????????????????????? | | ????????????????????????????????????????????????? | | ????????????????????????????????????????????????? | | ????????????????????????????????????????????????? | +----------------------------------------------------+ Best States ------------- Heat Dissipation 144 Coolant Potential 100 Energy Generation 65 Energy Capacity 3280 Matter Stores 300 Matter Capacity 550 Sight Range 16 Terrain Scan Range 20 Terrain Scan Density 10 Base Temperature (-) 200 Armor Coverage 1200 Resistance: KI 40 Resistance: TH 50 Resistance: EM 75 Core Shielding 40 Propulsion Shielding 33 Weapon Shielding 90 Melee Speed Boost 20 Evasion (%) 40 Targeting Accuracy 8 Core Analysis 10 Armor Integrity Analysis 50 Recoil Reduction 4 Particle Charging 25 Kinecelleration 40 Offensive Hacking 28 Defensive Hacking 14 Item Schematics ----------------- None Robot Schematics ------------------ None Fabricated ------------ B-48 Gladiator | x3 | -6/Factory | Preloaded Adv. Heavy Siege Treads | x2 | -2/Research Alien Tech Used ----------------- Sigix Broadsword Core Stripper Integrated Reactor Dimensional Node Initializer Integrity Redistributor Core Regenerator Phase Armor Core Membrane Transdimensional Reconstructor Core Reset Matrix Achievements -------------- Sunderer Turtlemind Challenges ------------ None Game ------ Seed ChipRefineryKinecellerator Manual? 0 Play Time 04:54:04 Cumulative 467.7 hours Start 2020.09.07 @ 19:55:16 End 2020.09.08 @ 20:31:15 Sessions 3 Manual Loads 0 Difficulty Rogue Special Mode None Game No. 310 Rogue 310 Adventurer 0 Explorer 0 Win Type - Total 4 Types 4/0/0/0/0/0/0 Lore% 86 Gallery% 88 Achievement% 66 Wizard Run 0 Options --------- ASCII 0 Keyboard 0 Movement Mouse Keybinds 1 Fullscreen 2 Font 24/Smallcaps Map View 76x50 Tactical HUD 1 Map Filters NONE Filters NONE Steam 1 RUN: ec28bfd6-7c15-4672-8259-9282a35ac746